Cogmind - Beta 11.1 @@@ ROGUE MODE // 2022.05.09 @ 11:21:25 Player: Zeldest Result: Destroyed by B-36 Bruiser with Hammer Performance ------------- Evolutions (0) 0 Regions Visited (4) 800 Robots Destroyed (22) 110 Value Destroyed (349) 349 Prototype IDs (0) 0 Alien Tech Used (0) 0 Bonus (61) 61 TOTAL SCORE: 1320 Bonus ------- Follower Combat Kills 81 Friendly Fire -20 Cogmind --------- Core Integrity 0/250 Matter 300/300 Energy 100/100 System Corruption 4% Temperature Cool (0) Movement Walking (190) Ox1 Location -9/Mines Parts ------- > --- POWER (1) -------- (None) > --- PROPULSION (2) --- Aluminum Leg Aluminum Leg > --- UTILITY (2) ------ Large Storage Unit > --- WEAPON (2) ------- Katana Makeshift Spear > --- INVENTORY (15) --- Ion Engine Improved Ion Engine Aluminum Leg Aluminum Leg Aluminum Leg Bomb Drone Bay Small Laser Small Laser Rocket Launcher Mining Laser Welding Torch Peak State ------------ > --- POWER ------------ Light Nuclear Core > --- PROPULSION ------- Aluminum Leg Aluminum Leg > --- UTILITY ---------- Large Storage Unit Structural Scanner > --- WEAPON ----------- Katana Makeshift Spear > --- INVENTORY -------- Ion Engine Improved Ion Engine Aluminum Leg Aluminum Leg Bomb Drone Bay Small Laser Small Laser [Rating: 16] Favorites ----------- Power Light Nuclear Core Engine Ion Engine Power Core Light Nuclear Core Propulsion Aluminum Leg Leg Aluminum Leg Wheel Wheel Utility Large Storage Unit Device Structural Scanner Storage Large Storage Unit Weapon Small Laser Energy Gun Small Laser Slashing Weapon Katana Piercing Weapon Makeshift Spear Build | -11 -10 -10 -10 -9 ------- Run | Scr Mat Min Exi Min Slots Evolved . | . . . . . Power . | . . . . . Propulsion . | . . . . . Utility . | . . . . . Weapon . | . . . . . Parts Attached 18 | 5 2 6 1 4 Power 3 | 1 . 1 . 1 Engine 1 | 1 . . . . Core 2 | . . 1 . 1 Reactor . | . . . . . Propulsion 5 | 2 . 2 . 1 Treads . | . . . . . Leg 3 | . . 2 . 1 Wheel 2 | 2 . . . . Hover . | . . . . . Flight . | . . . . . Utility 4 | 1 2 . 1 . Device 2 | . 1 . 1 . Storage 2 | 1 1 . . . Processor . | . . . . . Hackware . | . . . . . Protection . | . . . . . Artifact . | . . . . . Weapon 6 | 1 . 3 . 2 Energy Gun 4 | 1 . 3 . . Energy Cannon . | . . . . . Ballistic Gun . | . . . . . Ballistic Cannon . | . . . . . Launcher . | . . . . . Special Weapon . | . . . . . Impact Weapon . | . . . . . Slashing Weapon 1 | . . . . 1 Piercing Weapon 1 | . . . . 1 Special Melee Weapon . | . . . . . Unidentified Prototypes . | . . . . . Parts Lost 5 | . . 3 . 2 Power 2 | . . 1 . 1 Propulsion 2 | . . 2 . . Utility 1 | . . . . 1 Weapon . | . . . . . Highest Loss Streak 2 | . . 2 . 2 To Critical Strikes . | . . . . . Average Slot Usage (%) 86 | . 75 85 85 98 Engine 1 | . 14 1 . . Core 12 | . . 11 14 13 Leg 24 | . . 22 28 28 Wheel 2 | . 28 1 . . Device 4 | . 4 5 . 13 Storage 14 | . 14 14 14 14 Energy Gun 23 | . 14 27 28 4 Slashing Weapon 1 | . . . . 11 Piercing Weapon 1 | . . . . 11 Naked Turns . | . . . . . Heaviest Build 30 | 11 27 28 28 30 Greatest Support 26 | 26 26 20 20 20 Greatest Overweight (x) 7 | 3 1 7 1 1 Average Overweight (x) . | . . 1 1 1 Largest Inventory Capacity 15 | 8 15 15 15 15 Average Capacity 14 | 7 14 15 15 15 Most Carried 12 | 4 2 6 6 12 Average Carried 5 | 1 1 3 5 8 Final Capacity 15 | 8 15 15 15 15 Final Carried 12 | 1 1 6 5 12 Class Distribution -------------------- 83% | Scavenger-Mutant 16% | Mutant Dominant Class ---------------- Mutant | -10/Materials Scavenger-Mutant | -10/Mines Scavenger-Mutant | -10/Exiles Scavenger-Mutant | -9/Mines Resources | -11 -10 -10 -10 -9 ----------- Run | Scr Mat Min Exi Min Matter Collected 375 | 181 . 144 . 50 Remotely . | . . . . . Salvage Created 777 | . . 438 . 339 Parts 39 | . . 16 . 23 Haulers Intercepted . | . . . . . Recyclers Shooed . | . . . . . Parts Field Recycled . | . . . . . Retrieved Matter . | . . . . . Parts Self-Destructed . | . . . . . Prevented . | . . . . . Kills | -11 -10 -10 -10 -9 ------- Run | Scr Mat Min Exi Min Combat Hostiles Destroyed 12 | . . 7 . 5 Melee 3 | . . . . 3 Guns 9 | . . 7 . 2 Classes Destroyed 7 | . . 4 . 3 Worker 3 | . . . . 3 Builder 1 | . . . . 1 Tunneler 2 | . . 1 . 1 Recycler 4 | . . 2 . 2 Swarmer 6 | . . 3 . 3 Grunt 5 | . . 4 . 1 Duelist 1 | . . . . 1 Best Kill Streak 3 | . . 3 . 3 Combat Bots Only 3 | . . 2 . 3 Max Kills in Single Turn 1 | . . 1 . 1 Gunslinging . | . . . . . Exploded . | . . . . . Melee 1 | . . . . 1 Uniques/NPCs Destroyed . | . . . . . Combat | -11 -10 -10 -10 -9 -------- Run | Scr Mat Min Exi Min Damage Taken 1010 | . . 415 . 595 Core 271 | . . 85 . 186 Absorbed by Shields . | . . . . . Core Remaining (%) 100 | 100 . . . . Volleys Fired 39 | . . 32 . 7 Largest 2 | . . 2 . 2 Hottest 80 | . . 80 . 80 Shots Fired 70 | . . 56 . 14 Gun 70 | . . 56 . 14 Cannon . | . . . . . Launcher . | . . . . . Special . | . . . . . Kinetic . | . . . . . Thermal 70 | . . 56 . 14 Explosive . | . . . . . Electromagnetic . | . . . . . Robot Hit Streak 11 | . . 11 . 4 Robot Miss Streak 4 | . . 4 . 2 Penetration Max . | . . . . . Secondary Targets 1 | . . . . 1 Max Gunslinging Chain 1 | . . . . 1 Shots Hit Robots 64 | . . 34 . 30 Core Hits 28 | . . 18 . 10 Critical Kills . | . . . . . Critical Parts Destroyed . | . . . . . Critical Strikes 1 | . . . . 1 Impale 1 | . . . . 1 Melee Attacks 31 | . . . . 31 Impact . | . . . . . Slashing 5 | . . . . 5 Piercing 26 | . . . . 26 Sneak Attacks 8 | . . . . 8 Combat Hostiles . | . . . . . Follow-up Attacks 3 | . . . . 3 Damage Inflicted 1349 | . . 389 . 960 Guns 509 | . . 389 . 120 Cannons . | . . . . . Explosions . | . . . . . Melee 840 | . . . . 840 Ramming . | . . . . . Kinetic . | . . . . . Thermal 509 | . . 389 . 120 Explosive . | . . . . . Electromagnetic . | . . . . . Impact . | . . . . . Slashing 81 | . . . . 81 Piercing 759 | . . . . 759 Highest Corruption 4 | . . . . 4 Average Corruption 2 | . . . . 2 Corruption Purged . | . . . . . Corruption Blocked . | . . . . . Effects 1 | . . . . 1 Data Loss (major) 1 | . . . . 1 Overload Shots . | . . . . . Overflow Damage 115 | . . . . 115 Projectiles . | . . . . . Explosions . | . . . . . Melee 115 | . . . . 115 Knockbacks . | . . . . . Impact . | . . . . . Kinetic . | . . . . . Secondary . | . . . . . Self-Inflicted Damage . | . . . . . Shots . | . . . . . Rammed . | . . . . . Targets Rammed . | . . . . . Kicked . | . . . . . Crushed . | . . . . . Highest Temperature 192 | . . 171 . 192 Average Temperature 58 | . . 50 . 87 Received Heat Transfer 282 | . . 162 . 120 Siege Activations . | . . . . . Robots Corrupted . | . . . . . Combat Hostiles . | . . . . . Parts Fried . | . . . . . Impact Corruptions . | . . . . . Robots Melted . | . . . . . Combat Hostiles . | . . . . . Parts Melted 2 | . . 1 . 1 Heat Transferred 1150 | . . 875 . 275 Parts Sabotaged . | . . . . . Parts Stolen . | . . . . . Parts Stripped . | . . . . . Power Chain Reactions . | . . . . . Missiles Intercepted . | . . . . . Alert | -11 -10 -10 -10 -9 ------- Run | Scr Mat Min Exi Min Peak Influence 193 | . 30 181 . 193 Initial 11 | . . 11 . . Average 93 | . 12 96 . 140 Maximum Alert Level . | . . . . . Low Security (%) 100 | 100 100 100 . 100 Level 1 . | . . . . . Level 2 . | . . . . . Level 3 . | . . . . . Level 4 . | . . . . . Level 5 . | . . . . . High Security . | . . . . . Max Security . | . . . . . Squads Dispatched 1 | . 1 . . . Investigation 1 | . 1 . . . Extermination . | . . . . . Reinforcement . | . . . . . Assault . | . . . . . Garrison . | . . . . . Intercept . | . . . . . Searches Triggered . | . . . . . Construction Impeded . | . . . . . Haulers Reinforced . | . . . . . Active Scanning Responses . | . . . . . Cargo Convoy Interrupts . | . . . . . Stealth | -11 -10 -10 -10 -9 --------- Run | Scr Mat Min Exi Min Distress Signals . | . . . . . Communications Jammed . | . . . . . Distress Signals . | . . . . . Times Spotted 22 | . 2 10 . 10 Peak Tracking Total 4 | . 1 4 . 3 Tactical Retreats 1 | . . 1 . . Traps | -11 -10 -10 -10 -9 ------- Run | Scr Mat Min Exi Min Traps Triggered 1 | . 1 . . . Indirectly . | . . . . . Trap Hack Attempts . | . . . . . Triggered . | . . . . . Disarmed . | . . . . . Reprogrammed . | . . . . . Reused . | . . . . . Traps Extracted . | . . . . . Installed . | . . . . . Triggered . | . . . . . Machines | -11 -10 -10 -10 -9 ---------- Run | Scr Mat Min Exi Min Machines Disabled . | . . . . . Max in Single Turn . | . . . . . Machines Sabotaged . | . . . . . Garrisons Compromised . | . . . . . Overloaded Fab Kills . | . . . . . Hacking | -11 -10 -10 -10 -9 --------- Run | Scr Mat Min Exi Min Machines Accessed 6 | . 1 1 4 . Terminals 1 | . 1 . . . Fabricators . | . . . . . Repair Stations . | . . . . . Recycling Units . | . . . . . Scanalyzers . | . . . . . Garrison Access . | . . . . . Total Hacks 6 | . 1 1 4 . Successful 6 | . 1 1 4 . Failed . | . . . . . Catastrophic . | . . . . . Database Lockouts . | . . . . . Manual 2 | . . . 2 . Terminals 1 | . 1 . . . Fabricators . | . . . . . Repair Stations . | . . . . . Recycling Units . | . . . . . Scanalyzers . | . . . . . Garrison Access . | . . . . . Terminal Hacks 6 | . 1 1 4 . Record 4 | . . . 4 . Open Door 1 | . . 1 . . Alert Level 1 | . 1 . . . Fabricator Hacks . | . . . . . Repair Station Hacks . | . . . . . Recycling Unit Hacks . | . . . . . Scanalyzer . | . . . . . Garrison Access Hacks . | . . . . . Unauthorized Hacks . | . . . . . Terminals . | . . . . . Fabricators . | . . . . . Repair Stations . | . . . . . Recycling Units . | . . . . . Scanalyzers . | . . . . . Garrison Access . | . . . . . Data Cores Recovered . | . . . . . Used . | . . . . . Hacking Detections . | . . . . . Full Trace Events . | . . . . . Feedback Events . | . . . . . Feedback Blocked . | . . . . . Robot Schematics Acquired . | . . . . . Robots Built . | . . . . . Authchips . | . . . . . Time . | . . . . . Total Robot Build Rating . | . . . . . Part Schematics Acquired . | . . . . . Parts Built . | . . . . . Authchips . | . . . . . Time . | . . . . . Total Part Build Rating . | . . . . . Parts Repaired . | . . . . . Time . | . . . . . Parts Recycled . | . . . . . Recycled Matter . | . . . . . Retrieved Matter . | . . . . . Retrieved Components . | . . . . . Parts Scanalyzed . | . . . . . Part Schematics Acquired . | . . . . . Parts Damaged . | . . . . . Bothacking | -11 -10 -10 -10 -9 ------------ Run | Scr Mat Min Exi Min Used RIF Installer . | . . . . . Robots Hacked . | . . . . . Non-combat . | . . . . . Combat . | . . . . . Robot Hacks Applied . | . . . . . Relay Couplers Released . | . . . . . Fabnet Peak Effective % . | . . . . . Robots Rewired . | . . . . . Allies Hacked . | . . . . . Hacks Repelled . | . . . . . Allies | -11 -10 -10 -10 -9 -------- Run | Scr Mat Min Exi Min Total Allies 3 | . . 3 . . Largest Group 3 | . . 3 2 2 Highest-Rated Group 40 | . . 40 32 32 Highest-Rated Ally 16 | . . 16 16 16 Total Orders . | . . . . . Ally Attacks 17 | . . 10 . 7 Total Damage 170 | . . 93 . 77 Kills 5 | . . 2 . 3 Allies Corrupted . | . . . . . Allies Melted . | . . . . . Intel | -11 -10 -10 -10 -9 ------- Run | Scr Mat Min Exi Min Robot Analysis Total . | . . . . . Derelict Logs Recovered 1 | . . 1 . . Drone Launches . | . . . . . Drone Recoveries . | . . . . . Exploration | -11 -10 -10 -10 -9 ------------- Run | Scr Mat Min Exi Min Turns Passed 2484 | 86 155 758 1102 383 Spaces Moved 1294 | 62 152 348 580 152 Core 37 | 27 . 10 . . Treads . | . . . . . Legs 1029 | . . 297 580 152 Wheels 228 | 35 152 41 . . Hover . | . . . . . Flight . | . . . . . Fastest Speed 50 | 50 90 110 190 190 Average Speed 174 | 120 94 186 190 190 Slowest Speed 400 | 200 105 400 190 190 Overloaded Moves . | . . . . . Propulsion Burnouts . | . . . . . Robots Hopped . | . . . . . Cave-ins Triggered . | . . . . . Exploration Rate (%) 44 | 4 23 70 90 37 Regions Visited 4 Branch Regions 3 Pre-discovered Areas 1 | . . 1 . . Known Exits Taken . | . . . . . Unknown Exits Taken 4 | 1 1 1 1 . Scrap Searched 3 | . . 1 . 2 Spaces Dug . | . . . . . Terrain Destroyed . | . . . . . Melee . | . . . . . Projectile . | . . . . . AOE . | . . . . . Terrain Rammed . | . . . . . Walls Destroyed . | . . . . . Machines Disabled . | . . . . . Actions | -11 -10 -10 -10 -9 --------- Run | Scr Mat Min Exi Min Total 1423 | 72 164 402 580 205 Wait 14 | . 7 4 . 3 Move 1290 | 61 151 347 579 152 Hop . | . . . . . Pick Up 27 | 6 2 10 . 9 Fast Attach . | . . . . . Attach 14 | 5 2 4 1 2 Detach 3 | . 1 . . 2 Swap 4 | . . 2 . 2 Drop 6 | . 1 3 . 2 Fire 39 | . . 32 . 7 Melee 26 | . . . . 26 Ram . | . . . . . Kick . | . . . . . Crush . | . . . . . Escape Stasis . | . . . . . Rewire . | . . . . . Trap . | . . . . . Miscellaneous . | . . . . . Route ------- -11/Scrapyard -10/Materials -10/Mines (discovered 2 exits: [*Mat] / *Exi) -10/Exiles (discovered 2 exits: [*Min x2]) -9/Mines History --------- Turn | Location | Event 10 | -11/Scrapyard | Discovered new exit (range 15) 87 | -11/Scrapyard | Entered Materials 110 | -10/Materials | Discovered new exit (range 15) 242 | -10/Materials | Entered Mines 307 | -10/Mines | Build established: Mutant 441 | -10/Mines | Assisted by bots powering up and referring to "LRC-V3" 505 | -10/Mines | Learned location of Zion (-6) 532 | -10/Mines | Found the Drone Emporium 541 | -10/Mines | Found Prototype Device 696 | -10/Mines | Build established: Scavenger-Mutant 809 | -10/Mines | A weapon hastily lodged in a ceiling crevice suddenly fell to the ground 856 | -10/Mines | Discovered new exit (range 6) 926 | -10/Mines | Found a hidden stash of uninstalled traps 993 | -10/Mines | Deemed a non-threat by the Exiles lab entrance 993 | -10/Mines | Discovered new exit (range 5) 1000 | -10/Mines | Entered Exiles 1000 | -10/Exiles | Found Exiles lab abandoned 1000 | -10/Exiles | Accompanied by 2 allies 1029 | -10/Exiles | Discovered new exit (range 14) 1798 | -10/Exiles | Discovered new exit (range 14) 2102 | -10/Exiles | Entered Mines 2102 | -9/Mines | Accompanied by 2 allies 2132 | -9/Mines | Core integrity fell below 50% 2362 | -9/Mines | Received a Rocket Launcher from a helpful Derelict 2464 | -9/Mines | Core integrity fell below 20% 2485 | -9/Mines | Destroyed by B-36 Bruiser with Hammer Last Messages --------------- 02431_ R-06 Scavenger destroyed. 02435_ K-01 Serf collects debris. 02437_ Sneak attack on T-07 Excavator. 02437_ T-07 Excavator destroyed. 02439_ Sneak attack on K-01 Serf. 02439_ K-01 Serf destroyed. 02449_ Acquired Mining Laser. 02455_ Searching scrap... 02455_ Found Hrd. Light Armor Plating. 02455_ Found Lgt. EM Pulse Cannon. 02455_ Found 29 Matter. 02466_ Structural Scanner destroyed. 02466_ System corrupted by crushing effect (+1). 02469_ Katana follow-up attack on B-36 Bruiser. 02471_ Knocked back. 02474_ Lgt. Nuclear Core destroyed. 02474_ System corrupted by crushing effect (+3). 02477_ Destroyed Lgt. Armor Plating. 02479_ Katana follow-up attack on B-36 Bruiser. 02483_ System corrupted: Substantial component data lost. Map ----- +----------------------------------------------------+ | ?????????????????????????????????????????????? | | ?????????????????????????????????????????????? | | ?????????????????????????????????????????????? | | ?????????????????????????????????????????????? | | ?????????????????????????????????????????????? | | ?????????????????????????????????????????????? | | ?????????????????????????????????????????????? | | ?????????????????????????????????????????????? | | ?????????????????????????????????????????????? | | ?????????????????????????????????????????????? | | ?????????????????????????????????????????????? | | ?????????????????#### ##????????????????????? | | ?????????????????#### ##????????????????????? | | ?????????????????## ????????????????????? | | ##??????????????? ?????????????????????? | | ###??????????????? ?????????????????????? | | ###????????????### ?????????????????????? | | ##????????????### #????????????????????? | | ##???????????## #####?????????????????? | | # ######???????## #####?????????????????? | | # ############## ##?????????????????? | | # ############ #?????????????????? | | ## # ##?????????????????? | | ## ###### ## ## % ##]##?????????????????? | | ### ##### ##*###!###%##?????????????????? | | #### ##[###=###@###????????????????? | | #### ##*%*[!%##b###????????????????? | | # ### #######* ##????????????????? | | # ### ####### ###g##????????????????? | | ## ##### ######??? ## ##????????????????? | | ###=#####%!###### ## ##????????????????? | | ###%##?## ###### """## ##????????????????? | | # =##?##% """## ##????????????????? | | # ####?## ###### """## ????????????????? | | # ####?## ###### #####????????????????? | | ##???## ##??## #####????????????????? | | ####???## ##??#######???????????????????????? | | ####???## ##??#######???????????????????????? | | ##?????## ##????????????????????????????????? | | ##?????## ##????????????????????????????????? | | ##?????## ##????????????????????????????????? | | ##?????## ????????????????????????????????? | | ######### ????????????????????????????????? | | #############????????????????????????????????? | | ## ##????????????????????????????????? | | ## """ """ ##????????????????????????????????? | | ## """ """ ##????????????????????????????????? | | ## """ """ ##????????????????????????????????? | | =% ##????????????????????????????????? | | """=* ##????????????????????????????????? | +----------------------------------------------------+ Best States ------------- Heat Dissipation 25 Energy Generation 14 Energy Capacity 250 Matter Stores 300 Matter Capacity 300 Sight Range 16 Terrain Scan Range 14 Terrain Scan Density 10 Evasion (%) 42 Item Schematics ----------------- None Robot Schematics ------------------ None Fabricated ------------ Nothing Alien Tech Used ----------------- None Achievements -------------- None Challenges ------------ None Game ------ Seed AssembledActiveUnit Manual? 0 Play Time 00:18:16 Cumulative 20.2 hours Start 2022.05.09 @ 10:44:57 End 2022.05.09 @ 11:21:25 Sessions 1 Manual Loads 0 Difficulty Rogue Special Mode None Game No. 46 Rogue 46 Adventurer 0 Explorer 0 Win Type - Total 0 Types 0/0/0/0/0/0/0/0/0 Lore% 20 Gallery% 24 Achievement% 18 Wizard Run 0 Options --------- ASCII 0 Keyboard 1 Movement Numpad Keybinds 0 Fullscreen 1 Font 18/SmallcapsGlow Map View 76x50 Tactical HUD 1 Map Filters NONE Filters NONE Steam 1 RUN: bd107b8f-c853-4a30-93f4-22bc0c73f909